bitfinex/quotes_BTCUSD_20250512
["timestamp","ask_amount","ask_price","bid_price","bid_amount"]
[1747057263943,0.00248934,104050.0,104040.0,2.1958533]
[1747057264169,0.00248934,104050.0,104040.0,2.1928533]
[1747057264385,0.00248934,104050.0,104040.0,1.53010304]
[1747057264605,0.00248934,104050.0,104040.0,1.53610304]
[1747057264830,0.02170975,104050.0,104040.0,1.37828304]
[1747057265046,0.01209945,104050.0,104040.0,1.37828304]
[1747057265275,0.01209927,104050.0,104040.0,1.37828304]
[1747057265495,0.03131986,104050.0,104040.0,0.91864574]
[1747057265718,0.22353578,104050.0,104040.0,1.3686721]
[1747057265952,0.22353625,104050.0,104040.0,0.5018543]
[1747057266226,0.20431529,104050.0,104040.0,0.746]
[1747057266435,0.20431529,104050.0,104040.0,0.346]
[1747057266654,0.22611529,104050.0,104040.0,0.006]
[1747057266880,0.24861529,104050.0,104040.0,0.006]
[1747057267324,0.20184525,104040.0,104030.0,0.34]
[1747057268011,0.21145666,104040.0,104030.0,0.79002626]
[1747057268247,0.20188424,104020.0,104010.0,0.4984334]
[1747057268481,0.00961298,104020.0,104010.0,1.58946721]
[1747057268721,0.03845219,104020.0,104010.0,1.99917102]
[1747057268935,0.02883893,104020.0,104010.0,1.88258561]
[1747057269068,0.22111029,104020.0,104010.0,2.05725396]
[1747057269297,0.02883958,104020.0,104010.0,1.93292186]
[1747057269515,0.02883958,104020.0,104010.0,2.09102271]
[1747057270125,0.22111029,104020.0,104010.0,2.0844089]
[1747057270348,0.21149731,104020.0,104010.0,2.06518497]
[1747057270570,0.22111084,104020.0,104010.0,0.6454143]
[1747057271013,0.22111084,104020.0,104010.0,1.19693186]
[1747057271243,0.21149759,104020.0,104010.0,0.8418543]
[1747057271449,0.21149759,104020.0,104010.0,0.746]
[1747057271888,0.21149759,104020.0,104010.0,0.9382892]
[1747057272120,0.21149759,104020.0,104010.0,0.95751802]
[1747057272336,0.20188424,104020.0,104010.0,0.55751802]
[1747057272790,0.19227071,104020.0,104010.0,0.343]
[1747057273099,0.19227071,104020.0,104010.0,0.5342892]
[1747057273317,0.19227071,104020.0,104010.0,0.54390356]
[1747057273529,0.19225223,104030.0,104020.0,0.19227071]
[1747057273728,0.19225223,104030.0,104010.0,0.55451802]
[1747057273729,0.22111029,104020.0,104010.0,0.55451802]
[1747057273952,0.21149731,104020.0,104010.0,0.343]
[1747057274161,0.20188406,104020.0,104010.0,0.54490356]
[1747057274367,0.20188406,104020.0,104010.0,0.56313182]
[1747057274579,0.20188406,104020.0,104010.0,1.02277198]
[1747057274580,0.22111066,104020.0,104010.0,1.02277198]
[1747057274785,0.001,104030.0,104020.0,0.56111065]
[1747057275004,0.21145666,104040.0,104030.0,0.34]
[1747057275201,0.21145666,104040.0,104030.0,0.79002626]
[1747057276025,0.21145666,104040.0,104030.0,0.98227849]
[1747057276243,0.00248934,104050.0,104040.0,0.54184534]
[1747057276473,0.01209936,104050.0,104040.0,1.01109395]
[1747057276694,0.24275657,104050.0,104040.0,1.01109413]
[1747057276919,0.23314655,104050.0,104040.0,1.00148291]
[1747057277373,0.21392605,104050.0,104040.0,0.34]
[1747057277600,0.21392605,104050.0,104030.0,0.0958543]
[1747057277601,0.20184525,104040.0,104030.0,0.48324]
[1747057277811,0.01922254,104040.0,104030.0,1.16396726]
[1747057278042,0.00961085,104040.0,104030.0,1.16396744]
[1747057278269,0.03232023,104050.0,104040.0,0.56106769]
[1747057278494,0.02270947,104050.0,104040.0,1.01109395]
[1747057278703,0.04193034,104050.0,104040.0,1.01109395]
[1747057278921,0.02670947,104050.0,104040.0,1.00148291]
[1747057279127,0.02670947,104050.0,104040.0,1.01109395]
[1747057279412,0.22853505,104050.0,104040.0,1.00148291]
[1747057279558,0.23414627,104050.0,104040.0,1.00148291]
[1747057280211,0.01309945,104050.0,104040.0,1.01109395]
[1747057280401,0.23414636,104050.0,104040.0,1.01109413]
[1747057280822,0.21492595,104050.0,104040.0,0.9918716]
[1747057281033,0.19570462,104050.0,104040.0,0.74]
[1747057281246,0.19570462,104050.0,104040.0,0.53223375]
[1747057281505,0.20184534,104040.0,104030.0,0.73813279]
[1747057281713,0.0192242,104030.0,104020.0,1.68788339]
[1747057281974,0.19225223,104030.0,104010.0,0.83146]
[1747057282194,0.20190347,104010.0,104000.0,0.002]
[1747057282413,0.21151765,104010.0,104000.0,0.30939229]
[1747057282631,0.21151765,104010.0,104000.0,0.64939238]
[1747057283071,0.21151765,104010.0,104000.0,0.66862231]
[1747057283320,0.21151765,104010.0,104000.0,0.33823713]
[1747057283528,0.23074517,104010.0,104000.0,0.74980326]
[1747057283753,0.24035953,104010.0,104000.0,1.10903337]
[1747057283986,0.21151802,104010.0,104000.0,0.4378543]
[1747057284201,0.21151802,104010.0,104000.0,0.6493921]
[1747057284429,0.00961381,104010.0,104000.0,1.10903309]
[1747057284662,0.03844858,104030.0,104020.0,0.23072344]
[1747057284886,0.21147679,104030.0,104020.0,0.65191041]
[1747057285107,0.21149749,104020.0,104010.0,0.79002626]
[1747057285329,0.21149749,104020.0,104010.0,0.34]
[1747057285551,0.20190347,104010.0,104000.0,0.1462]
[1747057285985,0.20190347,104010.0,104000.0,0.4852]
[1747057286199,0.20190347,104010.0,104000.0,0.68712307]
[1747057286412,0.21151765,104010.0,104000.0,0.69673836]
[1747057286665,0.20190347,104010.0,104000.0,0.4852]
[1747057286877,0.20190347,104010.0,104000.0,0.342]
[1747057287092,0.21497071,104020.0,104000.0,0.57276754]
[1747057287309,0.19227071,104020.0,104010.0,0.20190366]
[1747057287535,0.01922826,104010.0,104000.0,1.01317925]
[1747057287754,0.20188415,104020.0,104000.0,1.0045635]
[1747057287968,0.21149675,104020.0,104010.0,0.65192973]
[1747057288175,0.21149722,104020.0,104010.0,0.20190366]
[1747057288559,0.00961288,104020.0,104010.0,0.67115735]
[1747057288761,0.23072335,104020.0,104010.0,0.6711579]
[1747057288964,0.22111047,104020.0,104010.0,0.66154391]
[1747057289398,0.01922623,104020.0,104010.0,0.67115772]
[1747057289624,0.02022568,104020.0,104010.0,0.67115772]
[1747057289842,0.23172364,104020.0,104010.0,0.6711579]
[1747057290291,0.21151746,104010.0,104000.0,0.342]
[1747057290506,0.21151746,104010.0,104000.0,0.002]
[1747057290507,0.25571746,104010.0,104000.0,0.002]
[1747057290927,0.35157176,104010.0,104000.0,0.002]
[1747057291588,0.35157176,104010.0,104000.0,0.003]
[1747057292037,0.80159802,104010.0,104000.0,0.002]
[1747057292263,0.80359802,104010.0,104000.0,0.004]
[1747057292686,1.14359802,104010.0,104000.0,0.002]
[1747057292923,1.14559802,104010.0,104000.0,0.002]
[1747057293931,1.17013887,104010.0,104000.0,0.002]
[1747057294126,1.18013887,104010.0,104000.0,0.002]
[1747057294767,1.17013887,104010.0,104000.0,0.002]
[1747057294984,1.59137887,104010.0,104000.0,0.002]
[1747057295197,1.59537887,104010.0,104000.0,0.002]
[1747057295353,1.59837887,104010.0,104000.0,0.002]
[1747057295768,1.91194907,104010.0,104000.0,0.002]
[1747057295981,0.60869899,103990.0,103980.0,0.002]
[1747057296199,1.45081955,103990.0,103980.0,0.00214683]
[1747057296426,1.00079329,103990.0,103980.0,0.00214683]
[1747057297095,1.45081955,103990.0,103980.0,0.00214683]
[1747057297866,0.97925244,103990.0,103980.0,0.00314683]
[1747057298290,0.98225244,103990.0,103980.0,0.00414683]
[1747057299269,0.69601244,103990.0,103980.0,0.00414683]
[1747057299491,0.49929244,103990.0,103980.0,0.00414683]
[1747057299693,0.62105244,103990.0,103980.0,0.00414683]
[1747057299894,0.21755814,103990.0,103980.0,0.00414683]
[1747057300095,0.21755814,103990.0,103980.0,0.45417309]
[1747057300509,0.21755814,103990.0,103980.0,0.00414683]
[1747057300713,0.21755814,103990.0,103980.0,0.19649151]
[1747057300917,0.02884734,103990.0,103980.0,0.67336835]
[1747057301124,0.23078982,103990.0,103980.0,0.69786844]
[1747057301322,0.23078982,103990.0,103980.0,0.66575195]
[1747057301522,0.22117426,103990.0,103980.0,0.65813491]
[1747057301728,0.22117426,103990.0,103980.0,0.00414683]
[1747057301729,0.21155851,103990.0,103980.0,0.00414683]
[1747057302124,0.21255851,103990.0,103980.0,0.00714683]
[1747057303563,0.23305851,103990.0,103980.0,0.00714683]
[1747057303985,0.21255851,103990.0,103980.0,0.19949151]
[1747057304189,0.21255851,103990.0,103980.0,0.00714683]
[1747057305457,0.001,103990.0,103980.0,0.81622255]
[1747057305674,0.001,103990.0,103980.0,1.15622255]
[1747057305891,0.001,103990.0,103980.0,2.14935255]
[1747057306102,0.22217398,103990.0,103980.0,0.84493213]
[1747057306333,0.21255832,103990.0,103980.0,0.00714683]
[1747057308815,0.25715832,103990.0,103980.0,0.00714683]
[1747057309259,0.35301262,103990.0,103980.0,0.00714683]
[1747057310539,0.21255832,103990.0,103980.0,0.00714683]
[1747057311180,0.30841262,103990.0,103980.0,0.00714683]
[1747057311394,0.35061262,103990.0,103980.0,0.00714683]
[1747057312841,0.32931262,103990.0,103980.0,0.00714683]
[1747057313506,0.35121262,103990.0,103980.0,0.00714683]
[1747057313727,0.30841262,103990.0,103980.0,0.00714683]
[1747057313935,0.21255832,103990.0,103980.0,0.64951777]
[1747057314139,0.21255832,103990.0,103980.0,0.47767309]
[1747057314551,0.21255832,103990.0,103980.0,0.679635]
[1747057314762,0.21255832,103990.0,103980.0,0.02764683]
[1747057314962,0.21255869,103990.0,103980.0,0.00714683]
[1747057316148,0.30841299,103990.0,103980.0,0.00714683]
[1747057316364,0.35071299,103990.0,103980.0,0.00714683]
[1747057318268,0.32951299,103990.0,103980.0,0.00714683]
[1747057318481,0.30841299,103990.0,103980.0,0.00714683]
[1747057319115,0.35071299,103990.0,103980.0,0.00714683]
[1747057320215,1.31061793,103990.0,103980.0,0.00714683]
[1747057320430,1.61061793,103990.0,103980.0,0.00714683]
[1747057320665,1.92747176,103990.0,103980.0,0.00714683]
[1747057320875,1.9418924,103990.0,103980.0,0.00714683]
[1747057321128,0.56613969,103970.0,103960.0,0.002]
[1747057321311,1.44038025,103970.0,103960.0,0.002]
[1747057322377,1.55623455,103970.0,103960.0,0.002]
[1747057322608,1.86305369,103970.0,103960.0,0.002]
[1747057325404,1.74242168,103930.0,103920.0,0.003]
[1747057325627,1.29239542,103930.0,103920.0,0.003]
[1747057325830,1.27785457,103930.0,103920.0,0.003]
[1747057326060,1.30439542,103930.0,103920.0,0.004]
[1747057326265,1.78423325,103930.0,103920.0,0.004]
[1747057326491,1.80575316,103930.0,103920.0,0.004]
[1747057326724,0.57342101,103910.0,103900.0,0.002]
[1747057326939,0.57342101,103910.0,103880.0,0.00231364]
[1747057326940,0.55176179,103890.0,103880.0,0.00231364]
[1747057327173,0.55176179,103890.0,103860.0,0.002]
[1747057327174,0.59390255,103870.0,103860.0,0.002]
[1747057327405,0.20225312,103830.0,103820.0,0.7896145]
[1747057327622,0.22151508,103830.0,103820.0,0.55412605]
[1747057327828,0.20688451,103830.0,103820.0,0.11827175]
[1747057328048,0.20688451,103830.0,103820.0,0.11876127]
[1747057328265,0.20688451,103830.0,103820.0,0.00048952]
[1747057328474,0.20688451,103830.0,103820.0,0.02148952]
[1747057328691,0.20688451,103830.0,103820.0,0.36148952]
[1747057328898,0.20688451,103830.0,103820.0,0.02148952]
[1747057329111,0.20688451,103830.0,103820.0,0.00048952]
[1747057329319,0.20788451,103830.0,103820.0,0.00348952]
[1747057330184,0.19888451,103830.0,103820.0,0.00348952]
[1747057331071,0.19788451,103830.0,103820.0,0.00348952]
[1747057331289,0.19788451,103830.0,103820.0,0.00048952]
[1747057331507,0.19788451,103830.0,103820.0,0.00248952]
[1747057331716,0.29373881,103830.0,103820.0,0.00248952]
[1747057331931,0.29473881,103830.0,103820.0,0.00248952]
[1747057332598,0.67643881,103830.0,103820.0,0.00248952]
[1747057333241,0.67543881,103830.0,103820.0,0.00248952]
[1747057333465,1.57203664,103830.0,103820.0,0.00448952]
[1747057333681,1.39219881,103830.0,103820.0,0.00448952]
[1747057334537,1.87103664,103830.0,103820.0,0.00248952]
[1747057334787,1.91363748,103830.0,103820.0,0.00048952]
[1747057334992,1.87103664,103830.0,103820.0,0.00248952]
[1747057335226,1.87503664,103830.0,103820.0,0.00348952]
[1747057335449,1.88857749,103830.0,103820.0,0.00148952]
[1747057335658,1.88857749,103830.0,103800.0,0.31786644]
[1747057335659,0.59292496,103810.0,103800.0,0.31786644]
[1747057335861,0.59292496,103810.0,103800.0,0.31030779]
[1747057335862,1.94130399,103810.0,103800.0,0.31030779]
[1747057336019,0.55316581,103790.0,103780.0,0.0150683]
[1747057336233,0.55316581,103790.0,103780.0,0.0151172]
[1747057336234,1.55473794,103790.0,103780.0,0.0151172]
[1747057336441,1.87853428,103790.0,103780.0,0.0151172]
[1747057336657,0.58265093,103780.0,103770.0,0.00048636]
[1747057336864,1.56840391,103780.0,103770.0,0.00097667]
[1747057337103,0.90267044,103770.0,103760.0,0.002]
[1747057337394,1.57836257,103770.0,103760.0,0.002]
[1747057337606,1.38852474,103770.0,103760.0,0.002]
[1747057337821,1.38852474,103770.0,103750.0,0.00207614]
[1747057337822,0.56438993,103760.0,103750.0,0.00207614]
[1747057338074,0.31286917,103760.0,103750.0,0.00207614]
[1747057338289,0.30788157,103760.0,103750.0,0.00207614]
[1747057338505,0.11512861,103760.0,103750.0,0.48191397]
[1747057338716,0.21202718,103760.0,103750.0,0.02347614]
[1747057338942,0.21202718,103760.0,103750.0,0.00207614]
[1747057339405,0.30788148,103760.0,103750.0,0.00207614]
[1747057339859,0.34627608,103760.0,103750.0,0.00207614]
[1747057340072,1.10235608,103760.0,103750.0,0.00207614]
[1747057340280,1.09740668,103760.0,103750.0,0.00207614]
[1747057340479,1.11880668,103760.0,103750.0,0.00207614]
[1747057340684,1.09840668,103760.0,103750.0,0.00207614]
[1747057340896,1.36272668,103760.0,103750.0,0.00207614]
[1747057341124,1.36472668,103760.0,103750.0,0.00207614]
[1747057341323,1.36372668,103760.0,103750.0,0.00207614]
[1747057341538,1.37103208,103760.0,103750.0,0.00207614]
[1747057341980,1.06501208,103760.0,103750.0,0.00207614]
[1747057342184,1.20757208,103760.0,103750.0,0.00207614]
[1747057342472,1.20657208,103760.0,103750.0,0.00207614]
[1747057342674,1.20757208,103760.0,103750.0,0.00207614]
[1747057342881,1.21257208,103760.0,103750.0,0.00207614]
[1747057343055,1.20557208,103760.0,103750.0,0.00207614]
[1747057343259,1.22627208,103760.0,103750.0,0.00207614]
[1747057343539,1.22827208,103760.0,103750.0,0.00207614]
[1747057344212,1.25007208,103760.0,103750.0,0.00207614]
[1747057344443,1.86461293,103760.0,103750.0,0.00207614]
[1747057344658,2.35445076,103760.0,103750.0,0.00207614]
[1747057344898,1.56461293,103760.0,103750.0,0.00207614]
[1747057345114,1.54281293,103760.0,103750.0,0.00207614]
[1747057345340,1.52827208,103760.0,103750.0,0.00207614]
[1747057346043,0.72501208,103760.0,103750.0,0.00207614]
[1747057346266,0.30893208,103760.0,103750.0,0.00207614]
[1747057347161,0.96923208,103760.0,103750.0,0.00207614]
[1747057347821,1.23413208,103760.0,103750.0,0.00207614]
[1747057348058,1.25513208,103760.0,103750.0,0.00207614]
[1747057348744,1.57543208,103760.0,103750.0,0.00207614]
[1747057348966,1.55513208,103760.0,103750.0,0.00207614]
[1747057349175,1.25513208,103760.0,103750.0,0.00207614]
[1747057350609,1.36552723,103760.0,103750.0,0.00207614]
[1747057350856,2.06273681,103760.0,103750.0,0.00207614]
[1747057351345,2.05273681,103760.0,103750.0,0.00207614]
[1747057351828,2.05273681,103760.0,103740.0,0.14854233]
[1747057351829,1.71783646,103750.0,103740.0,0.14854233]
[1747057352051,2.85191391,103750.0,103740.0,0.14854233]
[1747057352294,2.90533545,103750.0,103740.0,0.14854233]
[1747057352541,2.62293196,103750.0,103740.0,0.14854233]
[1747057352794,2.77549196,103750.0,103740.0,0.14854233]
[1747057353051,1.80596459,103750.0,103740.0,0.14854233]
[1747057353320,2.08486459,103750.0,103740.0,0.14854233]
[1747057353568,2.09386459,103750.0,103740.0,0.14854233]
[1747057353815,0.85862459,103750.0,103740.0,0.14854233]
[1747057354041,1.14386459,103750.0,103740.0,0.14854233]
[1747057354306,1.10882374,103750.0,103740.0,0.14854233]
[1747057355061,1.44882374,103750.0,103740.0,0.14854233]
[1747057355541,1.55921889,103750.0,103740.0,0.14854233]
[1747057355772,1.48506459,103750.0,103740.0,0.14854233]
[1747057355994,1.10882374,103750.0,103740.0,0.14854233]
[1747057356220,1.44882374,103750.0,103740.0,0.14854233]
[1747057356503,0.96626374,103750.0,103740.0,0.10979555]
[1747057357009,1.20626374,103750.0,103740.0,0.10979555]
[1747057357217,1.06358374,103750.0,103740.0,0.10979555]
[1747057357467,1.34882374,103750.0,103740.0,0.10979555]
[1747057357707,1.34482374,103750.0,103740.0,0.10979555]
[1747057357959,1.34582374,103750.0,103740.0,0.10979555]
[1747057358389,1.34482374,103750.0,103740.0,0.10979555]
[1747057358616,1.34782374,103750.0,103740.0,0.10979555]
[1747057358848,2.28635672,103750.0,103740.0,0.10979555]
[1747057359089,2.18450242,103750.0,103740.0,0.10979555]
[1747057359596,1.70466459,103750.0,103740.0,0.10979555]
[1747057359822,2.18450242,103750.0,103740.0,0.10979555]
[1747057360524,2.04194242,103750.0,103740.0,0.10979555]
[1747057360761,2.76671545,103750.0,103740.0,0.10979555]
[1747057360991,2.76171545,103750.0,103740.0,0.10979555]
[1747057361458,2.77171545,103750.0,103740.0,0.10979555]
[1747057361695,2.76871545,103750.0,103740.0,0.10979555]
[1747057361926,2.77371545,103750.0,103740.0,0.10979555]
[1747057362379,3.32792545,103750.0,103740.0,0.10979555]
[1747057362615,3.35455125,103750.0,103740.0,0.10979555]
[1747057362838,3.05455125,103750.0,103740.0,0.10979555]
[1747057363115,2.34649161,103750.0,103740.0,0.10979555]
[1747057363347,2.15994242,103750.0,103740.0,0.10979555]
[1747057363578,3.8072792,103750.0,103740.0,0.10979555]
[1747057363823,1.99022715,103730.0,103720.0,0.00265369]
[1747057364062,0.22212931,103710.0,103700.0,0.00382386]
[1747057364345,1.64294144,103710.0,103700.0,0.00382386]
[1747057365059,1.34770144,103710.0,103700.0,0.00382386]
[1747057365286,1.95248229,103710.0,103700.0,0.00387286]
[1747057365508,1.93178229,103710.0,103700.0,0.00387286]
[1747057365742,2.23178229,103710.0,103700.0,0.00387286]
[1747057365969,1.76924446,103710.0,103700.0,0.00387286]
[1747057366410,0.83446361,103710.0,103700.0,0.00387286]
[1747057366861,1.11970361,103710.0,103700.0,0.00387286]
[1747057367967,1.13424446,103710.0,103700.0,0.00387286]
[1747057368224,1.11970361,103710.0,103700.0,0.00387286]
[1747057368441,2.25408229,103710.0,103700.0,0.00387286]
[1747057368687,2.23954144,103710.0,103700.0,0.00387286]
[1747057368896,1.89954144,103710.0,103700.0,0.00387286]
[1747057369122,1.41970361,103710.0,103700.0,0.00387286]
[1747057370251,1.11962361,103710.0,103700.0,0.00387286]
[1747057370907,1.11962361,103710.0,103700.0,0.02677286]
[1747057371121,0.97706361,103710.0,103700.0,0.02677286]
[1747057371338,0.83446361,103710.0,103700.0,0.02677286]
[1747057371553,0.83446361,103710.0,103700.0,0.04987286]
[1747057372260,0.41798361,103710.0,103700.0,0.02677286]
[1747057372708,0.41798361,103710.0,103700.0,0.00387286]
[1747057373372,0.89782144,103710.0,103700.0,0.00387286]
[1747057373585,1.19782144,103710.0,103700.0,0.00387286]
[1747057373796,1.21236229,103710.0,103700.0,0.00387286]
[1747057374011,0.75928734,103710.0,103700.0,0.00387286]
[1747057374234,1.86428517,103710.0,103700.0,0.00387286]
[1747057374447,1.88758517,103710.0,103700.0,0.00387286]
[1747057374669,1.38444734,103710.0,103700.0,0.00387286]
[1747057375120,1.39914099,103710.0,103700.0,0.00387286]
[1747057375332,1.87897882,103710.0,103700.0,0.00387286]
[1747057375558,1.90347831,103710.0,103700.0,0.00387286]
[1747057375777,1.87897882,103710.0,103700.0,0.00387286]
[1747057376004,1.90227882,103710.0,103700.0,0.00387286]
[1747057376217,1.92457882,103710.0,103700.0,0.00387286]
[1747057376453,2.20231882,103710.0,103700.0,0.00387286]
[1747057376661,1.69918099,103710.0,103700.0,0.00387286]
[1747057377330,0.74464014,103710.0,103700.0,0.00387286]
[1747057377554,0.41798361,103710.0,103700.0,0.04907286]
[1747057377808,0.56058361,103710.0,103700.0,0.04907286]
[1747057378259,0.41798361,103710.0,103700.0,0.04907286]
[1747057378925,0.32496206,103710.0,103700.0,0.04907286]
[1747057379158,0.23460423,103710.0,103700.0,0.27086601]
[1747057379405,0.02928332,103710.0,103700.0,0.2708662]
[1747057379603,0.22496206,103710.0,103700.0,0.04907286]
[1747057379819,0.21996206,103710.0,103700.0,0.04907286]
[1747057380034,0.21596206,103710.0,103700.0,0.04907286]
[1747057380468,0.31381636,103710.0,103700.0,0.04907286]
[1747057380694,0.31098361,103710.0,103700.0,0.04907286]
[1747057381113,0.21796206,103710.0,103700.0,0.25158009]
[1747057381343,0.20832026,103710.0,103700.0,0.04907286]
[1747057381589,0.003,103710.0,103700.0,1.09070319]
[1747057381788,0.02892522,103710.0,103700.0,1.26567203]
[1747057382002,0.03856721,103710.0,103700.0,1.27531485]
[1747057382246,0.23141348,103710.0,103700.0,0.77619119]
[1747057382457,0.21212978,103710.0,103700.0,0.38857286]
[1747057383097,0.21596253,103710.0,103700.0,0.04957286]
[1747057383571,0.21496253,103710.0,103700.0,0.04857286]
[1747057383781,0.21596253,103710.0,103700.0,0.05057286]
[1747057384255,0.21312978,103710.0,103700.0,0.05057286]
[1747057384491,0.21412978,103710.0,103700.0,0.05157286]
[1747057384950,0.21312978,103710.0,103700.0,0.05057286]
[1747057385414,0.21412978,103710.0,103700.0,0.05357286]
[1747057385640,0.30998408,103710.0,103700.0,0.03237286]
[1747057386625,0.21412978,103710.0,103700.0,0.05367286]
[1747057387108,0.002,103710.0,103700.0,1.19115749]
[1747057387353,0.21492453,103730.0,103720.0,0.0438]
[1747057388808,0.21309178,103730.0,103720.0,0.0448]
[1747057389033,0.30894608,103730.0,103720.0,0.0234]
[1747057389258,0.30994608,103730.0,103720.0,0.0244]
[1747057389723,0.21409178,103730.0,103720.0,0.0244]
[1747057390433,0.30994608,103730.0,103720.0,0.002]
[1747057391100,0.76158516,103730.0,103720.0,0.002]
[1747057391351,0.30994608,103730.0,103720.0,0.002]
[1747057391836,0.45246608,103730.0,103720.0,0.002]
[1747057392066,0.59502608,103730.0,103720.0,0.002]
[1747057394199,0.30994608,103730.0,103720.0,0.002]
[1747057394444,0.30994608,103730.0,103720.0,0.044]
[1747057394691,0.45246608,103730.0,103720.0,0.002]
[1747057395341,0.59502608,103730.0,103720.0,0.002]
[1747057396487,0.30994608,103730.0,103720.0,0.0233]
[1747057396716,0.22656428,103730.0,103720.0,0.69750726]
[1747057396936,0.22656428,103730.0,103720.0,0.68786592]
[1747057396937,0.00483275,103730.0,103720.0,0.68786592]
[1747057397156,0.0212798,103730.0,103720.0,1.05678891]
[1747057397380,0.002,103730.0,103720.0,1.78935398]
[1747057397598,0.002,103730.0,103720.0,1.73326298]
[1747057397830,0.002,103730.0,103720.0,2.13326298]
[1747057398045,0.01163957,103730.0,103720.0,2.13326298]
[1747057398286,0.01063976,103730.0,103720.0,2.13226298]
[1747057398511,0.01163966,103730.0,103720.0,2.13326298]
[1747057398733,0.002,103730.0,103720.0,2.13326298]
[1747057398949,0.001,103730.0,103720.0,2.13226298]
[1747057399232,0.2140886,103730.0,103720.0,1.32389338]
[1747057399439,0.2140886,103730.0,103720.0,0.7764]
[1747057399674,0.02127942,103730.0,103720.0,1.57523739]
[1747057399900,0.23336811,103730.0,103720.0,1.57523748]
[1747057400111,0.21592144,103730.0,103720.0,0.0354]
[1747057400325,0.21692144,103730.0,103720.0,0.0404]
[1747057400546,0.21408869,103730.0,103720.0,0.23322684]
[1747057400755,0.21692144,103730.0,103720.0,0.0404]
[1747057400970,0.20444856,103730.0,103720.0,0.0203]
[1747057401914,0.30030286,103730.0,103720.0,0.009]
[1747057403018,0.19284543,103710.0,103700.0,0.00387286]
[1747057403243,0.78921696,103710.0,103700.0,0.00387286]
[1747057403513,0.30798361,103710.0,103700.0,0.00387286]
[1747057403734,0.0958543,103710.0,103700.0,0.23743689]
[1747057403952,0.0958543,103710.0,103700.0,1.24781171]
[1747057404190,0.21210812,103720.0,103710.0,0.5823877]
[1747057404418,0.02892318,103720.0,103710.0,0.59202931]
[1747057404642,0.21210924,103720.0,103710.0,0.4757543]
[1747057405081,0.20246818,103720.0,103710.0,0.4757543]
[1747057405300,0.20248751,103710.0,103700.0,0.04042912]
[1747057405523,0.20248751,103710.0,103700.0,0.15658342]
[1747057405751,0.20248751,103710.0,103700.0,0.05972912]
[1747057406197,0.20532026,103710.0,103700.0,0.01732912]
[1747057406413,0.20248751,103710.0,103700.0,0.00387286]
[1747057406633,0.20248751,103710.0,103700.0,0.00687286]
[1747057406634,0.20348751,103710.0,103700.0,0.00687286]
[1747057407343,0.20448751,103710.0,103700.0,0.00987286]
[1747057407561,0.01447446,103710.0,103700.0,0.00987286]
[1747057407789,0.002,103710.0,103700.0,1.19118158]
[1747057408015,0.03092559,103710.0,103700.0,1.18925301]
[1747057408263,0.02128342,103710.0,103700.0,0.70801966]
[1747057408478,0.04056748,103710.0,103700.0,0.70801966]
[1747057408692,0.05020975,103710.0,103700.0,0.70801966]
[1747057408899,0.02128342,103710.0,103700.0,0.71766239]
[1747057409115,0.04056767,103710.0,103700.0,0.71766239]
[1747057409335,0.21696262,103710.0,103700.0,0.39037286]
[1747057409552,0.21696262,103710.0,103700.0,0.57338009]
[1747057409765,0.02128351,103710.0,103700.0,0.61236601]
[1747057409989,0.02128351,103710.0,103700.0,0.7275055]
[1747057410208,0.002,103710.0,103700.0,1.20873885]
[1747057410423,0.002,103710.0,103700.0,1.2232797]
[1747057410666,0.002,103710.0,103700.0,1.9668757]
[1747057410880,0.23341301,103710.0,103700.0,0.49607036]
[1747057411123,0.03092596,103710.0,103700.0,0.7178625]
[1747057411776,0.02128332,103710.0,103700.0,1.19909585]
[1747057412000,0.0309254,103710.0,103700.0,1.1894533]
[1747057412221,0.002,103710.0,103700.0,1.2136367]
[1747057412437,0.002,103710.0,103700.0,1.5065527]
[1747057413290,0.001,103710.0,103700.0,1.5035527]
[1747057413508,0.02891982,103730.0,103720.0,0.59190905]
[1747057413717,0.0192796,103730.0,103720.0,1.48385339]
[1747057413933,0.02891973,103730.0,103720.0,1.17863739]
[1747057414153,0.22172807,103730.0,103720.0,1.15935573]
[1747057414370,0.21208841,103730.0,103720.0,0.3798]
[1747057414592,0.21208841,103730.0,103720.0,0.34]
[1747057415718,0.21408841,103730.0,103720.0,0.347]
[1747057415946,0.21408841,103730.0,103720.0,0.53982684]
[1747057416161,0.03091982,103730.0,103720.0,0.70460404]
[1747057416388,0.05020054,103730.0,103720.0,1.18583757]
[1747057416604,0.24300879,103730.0,103720.0,1.18583757]
[1747057416815,0.04056013,103730.0,103720.0,0.72388569]
[1747057417082,0.002,103730.0,103720.0,1.20511904]
[1747057417307,0.002,103730.0,103720.0,1.38197489]
[1747057417737,0.002,103730.0,103720.0,1.78197489]
[1747057417959,0.002,103750.0,103740.0,0.56170699]
[1747057418171,0.002,103750.0,103740.0,2.63863349]
[1747057418415,0.002,103750.0,103740.0,2.50714449]
[1747057418637,0.002,103770.0,103760.0,0.7435976]
[1747057418869,0.002,103770.0,103760.0,0.84035655]
[1747057419083,0.02127199,103770.0,103760.0,0.60922055]
[1747057419300,0.05018077,103770.0,103760.0,0.59963258]
[1747057419516,0.05018068,103770.0,103760.0,0.60969255]
[1747057419726,0.05018142,103770.0,103760.0,0.75826755]
[1747057419935,0.04054482,103770.0,103760.0,1.00530476]
[1747057420152,0.23328005,103770.0,103760.0,1.0329421]
[1747057420373,0.21400722,103770.0,103760.0,0.74746898]
[1747057420591,0.21400722,103770.0,103760.0,0.7763811]
[1747057420826,0.21400722,103770.0,103760.0,0.78601816]
[1747057421060,0.21400722,103770.0,103760.0,0.4999033]
[1747057421280,0.21400722,103770.0,103760.0,0.71193095]
[1747057421513,0.21400722,103770.0,103760.0,0.72156829]
[1747057421949,0.21400722,103770.0,103760.0,0.71193095]
[1747057421950,0.20437062,103770.0,103760.0,0.71193095]
[1747057422189,0.20437062,103770.0,103760.0,0.70229342]
[1747057422634,0.002,103770.0,103760.0,0.72156801]
[1747057422888,0.01163595,103770.0,103760.0,1.9571174]
[1747057423107,0.19763983,103790.0,103780.0,0.60252152]
[1747057423108,0.002,103790.0,103780.0,0.60252152]
[1747057423340,0.002,103790.0,103780.0,2.09663509]
[1747057423564,0.002,103790.0,103780.0,1.76502709]
[1747057424025,0.002,103790.0,103780.0,1.32321967]
[1747057424483,0.002,103790.0,103780.0,1.32286865]
[1747057424768,0.002,103790.0,103780.0,1.11256565]
[1747057424996,0.002,103790.0,103780.0,1.82708448]
[1747057425226,0.002,103790.0,103780.0,1.76201848]
[1747057425456,0.002,103790.0,103780.0,1.32533891]
[1747057425892,0.002,103790.0,103780.0,1.80589328]
[1747057426376,0.002,103790.0,103780.0,1.80789328]
[1747057427363,0.002,103790.0,103780.0,1.80989328]
[1747057427653,0.002,103790.0,103780.0,1.99401328]
[1747057428149,0.011634,103790.0,103780.0,1.99601328]